[Event "*** Titled Tuesday Blitz"]
[Site "Chess.com"]
[Date "2018.11.06"]
[Round "1"]
[White "moro182"]
[Black "enriquetejedor"]
[Result "0-1"]
[WhiteElo "2722"]
[BlackElo "2423"]
[TimeControl "180+2"]
[EndTime "13:10:24 PST"]
[Termination "enriquetejedor won by resignation"]

1. d4 {[%clk 0:03:01.9]} 1... d5 {[%clk 0:02:56.8]} 2. c4 {[%clk 0:03:02.4]}
2... dxc4 {[%clk 0:02:56.7]} 3. e3 {[%clk 0:03:02.9]} 3... c5 {[%clk 0:02:57.2]}
4. Bxc4 {[%clk 0:03:04]} 4... e6 {[%clk 0:02:52.9]} 5. Nf3 {[%clk 0:03:04.2]}
5... a6 {[%clk 0:02:52]} 6. Qe2 {[%clk 0:03:01.1]} 6... Nf6 {[%clk 0:02:50.6]}
7. O-O {[%clk 0:03:01]} 7... Nc6 {[%clk 0:02:49.8]} 8. dxc5 {[%clk 0:03:01.7]}
8... Bxc5 {[%clk 0:02:47.3]} 9. Rd1 {[%clk 0:03:02.9]} 9... Qc7 {[%clk 0:02:45]}
10. a3 {[%clk 0:03:01.6]} 10... b5 {[%clk 0:02:43.9]} 11. b4 {[%clk 0:02:45.9]}
11... Bd6 {[%clk 0:02:42.7]} 12. Bb3 {[%clk 0:02:40.3]} 12... O-O {[%clk
0:02:42.7]} 13. Bb2 {[%clk 0:02:41.3]} 13... Ne5 {[%clk 0:02:41.5]} 14. Nxe5
{[%clk 0:02:38]} 14... Bxe5 {[%clk 0:02:42.1]} 15. Bxe5 {[%clk 0:02:36.9]} 15...
Qxe5 {[%clk 0:02:43.3]} 16. Nd2 {[%clk 0:02:37.7]} 16... Bb7 {[%clk 0:02:42.7]}
17. Rac1 {[%clk 0:02:37]} 17... Rac8 {[%clk 0:02:41.5]} 18. Qd3 {[%clk
0:02:25.4]} 18... h6 {[%clk 0:02:33.9]} 19. a4 {[%clk 0:02:03.4]} 19... Qg5
{[%clk 0:02:26.6]} 20. f3 {[%clk 0:02:02.2]} 20... Rcd8 {[%clk 0:02:25.6]} 21.
Qe2 {[%clk 0:02:00.8]} 21... bxa4 {[%clk 0:02:25.4]} 22. Bxa4 {[%clk 0:02:01.1]}
22... Nd5 {[%clk 0:02:23.7]} 23. f4 {[%clk 0:01:45.8]} 23... Qf6 {[%clk
0:02:19]} 24. Ne4 {[%clk 0:01:44]} 24... Qg6 {[%clk 0:02:17]} 25. Nc5 {[%clk
0:01:42]} 25... Ba8 {[%clk 0:02:01.6]} 26. Bc2 {[%clk 0:01:40.3]} 26... Nc3
{[%clk 0:01:46.4]} 27. Qf1 {[%clk 0:01:21.5]} 27... Rxd1 {[%clk 0:01:36.2]} 28.
Bxd1 {[%clk 0:01:20.9]} 28... Nd5 {[%clk 0:01:28.3]} 29. Bc2 {[%clk 0:01:09.6]}
29... Qg4 {[%clk 0:01:07.7]} 30. Bd1 {[%clk 0:00:54.8]} 30... Qg6 {[%clk
0:01:05.7]} 31. e4 {[%clk 0:00:53.1]} 31... Ne3 {[%clk 0:01:06.2]} 32. Qf3
{[%clk 0:00:53.6]} 32... Nxd1 {[%clk 0:01:02.6]} 33. Rxd1 {[%clk 0:00:55.5]}
33... f5 {[%clk 0:01:01.2]} 34. Nd7 {[%clk 0:00:55.2]} 34... Bxe4 {[%clk
0:00:58.8]} 35. Nxf8 {[%clk 0:00:53]} 35... Bxf3 {[%clk 0:00:58.5]} 36. Nxg6
{[%clk 0:00:53.8]} 36... Bxd1 {[%clk 0:00:59.8]} 37. Kf2 {[%clk 0:00:55.3]}
37... Kf7 {[%clk 0:00:59.9]} 38. Ne5+ {[%clk 0:00:56.8]} 38... Ke7 {[%clk
0:01:01.2]} 39. Ke3 {[%clk 0:00:58.3]} 39... Ba4 {[%clk 0:01:01.4]} 40. Kd4
{[%clk 0:00:59.5]} 40... g5 {[%clk 0:00:56.4]} 41. g3 {[%clk 0:00:59.5]} 41...
gxf4 {[%clk 0:00:55.4]} 42. gxf4 {[%clk 0:01:01.4]} 42... Kd6 {[%clk 0:00:56]}
43. Nf7+ {[%clk 0:01:00.8]} 43... Ke7 {[%clk 0:00:57.4]} 44. Ne5 {[%clk
0:00:58.5]} 44... Bb5 {[%clk 0:00:55.6]} 45. Kc5 {[%clk 0:00:58]} 45... Kf6
{[%clk 0:00:54.5]} 46. Kd6 {[%clk 0:00:58]} 46... Bf1 {[%clk 0:00:51.8]} 47.
Nd7+ {[%clk 0:00:58.8]} 47... Kf7 {[%clk 0:00:50.8]} 48. Ke5 {[%clk 0:00:59.1]}
48... Bc4 {[%clk 0:00:48.7]} 49. Kd4 {[%clk 0:00:59.1]} 49... Bb5 {[%clk
0:00:48.8]} 50. Ne5+ {[%clk 0:00:59.5]} 50... Ke7 {[%clk 0:00:47.9]} 51. Kc5
{[%clk 0:01:00.4]} 51... Bf1 {[%clk 0:00:46.1]} 52. Kc6 {[%clk 0:01:00]} 52...
Bh3 {[%clk 0:00:43.2]} 53. Kc7 {[%clk 0:00:57.4]} 53... h5 {[%clk 0:00:39.7]}
54. Nc6+ {[%clk 0:00:56.2]} 54... Kf6 {[%clk 0:00:40.3]} 55. Kd6 {[%clk
0:00:58.1]} 55... Bf1 {[%clk 0:00:37.8]} 56. h4 {[%clk 0:00:58.2]} 56... Bb5
{[%clk 0:00:29.5]} 57. Ne5 {[%clk 0:00:57]} 57... Be8 {[%clk 0:00:25]} 58. Nd3
{[%clk 0:00:55.1]} 58... Bb5 {[%clk 0:00:14.1]} 59. Nc5 {[%clk 0:00:55.9]} 59...
Bc4 {[%clk 0:00:15]} 60. Kd7 {[%clk 0:00:56.5]} 60... e5 {[%clk 0:00:14.6]} 61.
fxe5+ {[%clk 0:00:53.7]} 61... Kxe5 {[%clk 0:00:15.8]} 62. Kc6 {[%clk
0:00:55.2]} 62... f4 {[%clk 0:00:12.3]} 63. Nd7+ {[%clk 0:00:56.4]} 63... Kd4
{[%clk 0:00:12.6]} 64. Nf6 {[%clk 0:00:56.4]} 64... Bf7 {[%clk 0:00:11.8]} 65.
Kd6 {[%clk 0:00:47.5]} 65... f3 {[%clk 0:00:10.6]} 66. Ke7 {[%clk 0:00:48.8]}
66... f2 {[%clk 0:00:09.9]} 67. Kxf7 {[%clk 0:00:49.7]} 67... f1=Q {[%clk
0:00:09.9]} 68. Kg6 {[%clk 0:00:51.6]} 68... Kc4 {[%clk 0:00:10.1]} 69. Nxh5
{[%clk 0:00:51.9]} 69... Kxb4 {[%clk 0:00:11.1]} 70. Nf6 {[%clk 0:00:53.1]}
70... a5 {[%clk 0:00:12.2]} 71. h5 {[%clk 0:00:54.5]} 71... a4 {[%clk
0:00:13.6]} 72. h6 {[%clk 0:00:55.9]} 72... Qd3+ {[%clk 0:00:13.9]} 73. Kg7
{[%clk 0:00:56.6]} 73... a3 {[%clk 0:00:13.3]} 74. h7 {[%clk 0:00:58.1]} 74...
Qxh7+ {[%clk 0:00:13.7]} 75. Kxh7 {[%clk 0:01:00]} 75... a2 {[%clk 0:00:14.9]}
76. Nd5+ {[%clk 0:01:01.6]} 76... Ka5 {[%clk 0:00:14.1]} 0-1

[Event "*** Titled Tuesday Blitz"]
[Site "Chess.com"]
[Date "2018.11.06"]
[Round "1"]
[White "BilodeauA"]
[Black "IvanRadivojevic"]
[Result "1-0"]
[WhiteElo "2839"]
[BlackElo "2433"]
[TimeControl "180+2"]
[EndTime "13:10:33 PST"]
[Termination "BilodeauA won by resignation"]

1. d4 {[%clk 0:02:51.8]} 1... Nf6 {[%clk 0:02:58.1]} 2. Nc3 {[%clk 0:02:52.7]}
2... d5 {[%clk 0:02:55.7]} 3. Bf4 {[%clk 0:02:54.2]} 3... c6 {[%clk 0:02:55.8]}
4. e3 {[%clk 0:02:43.8]} 4... Bf5 {[%clk 0:02:56.2]} 5. f3 {[%clk 0:02:44.7]}
5... e6 {[%clk 0:02:55]} 6. g4 {[%clk 0:02:43.8]} 6... Bg6 {[%clk 0:02:55.7]} 7.
h4 {[%clk 0:02:45.2]} 7... h5 {[%clk 0:02:53.4]} 8. g5 {[%clk 0:02:46.7]} 8...
Nfd7 {[%clk 0:02:40.4]} 9. Bd3 {[%clk 0:02:48.6]} 9... Bxd3 {[%clk 0:02:39]} 10.
Qxd3 {[%clk 0:02:50.5]} 10... g6 {[%clk 0:02:40.9]} 11. O-O-O {[%clk 0:02:50.6]}
11... b6 {[%clk 0:02:39.8]} 12. e4 {[%clk 0:02:51.1]} 12... Bg7 {[%clk
0:02:38.2]} 13. Nge2 {[%clk 0:02:46.4]} 13... O-O {[%clk 0:02:38.3]} 14. Bd6
{[%clk 0:02:39.2]} 14... Re8 {[%clk 0:02:38.7]} 15. f4 {[%clk 0:02:40]} 15...
dxe4 {[%clk 0:02:38.3]} 16. Nxe4 {[%clk 0:02:39.8]} 16... b5 {[%clk 0:02:25.4]}
17. Be5 {[%clk 0:02:39.5]} 17... Na6 {[%clk 0:02:18.6]} 18. N2g3 {[%clk
0:02:17.9]} 18... Nb4 {[%clk 0:02:13.5]} 19. Qd2 {[%clk 0:02:11.6]} 19... Nd5
{[%clk 0:02:09]} 20. Nd6 {[%clk 0:02:11.6]} 20... Re7 {[%clk 0:02:07.9]} 21.
Nge4 {[%clk 0:02:10.9]} 21... N7b6 {[%clk 0:02:03.4]} 22. Nf6+ {[%clk 0:02:06]}
22... Kh8 {[%clk 0:01:56.6]} 23. Qe2 {[%clk 0:02:02.5]} 23... Nd7 {[%clk
0:01:31.5]} 24. Nxh5 {[%clk 0:01:23.4]} 24... gxh5 {[%clk 0:01:25.4]} 25. Qxh5+
{[%clk 0:01:23.3]} 25... Kg8 {[%clk 0:01:26.6]} 26. g6 {[%clk 0:01:18.1]} 26...
fxg6 {[%clk 0:00:44.8]} 27. Qxg6 {[%clk 0:01:17.9]} 27... Nf8 {[%clk 0:00:46.3]}
28. Qg4 {[%clk 0:01:06.9]} 28... Ne3 {[%clk 0:00:42]} 29. Qg3 {[%clk 0:01:07.8]}
29... Nxd1 {[%clk 0:00:43.1]} 30. Rxd1 {[%clk 0:01:09.4]} 30... Rd7 {[%clk
0:00:33.5]} 31. Ne4 {[%clk 0:01:09.3]} 31... Kh8 {[%clk 0:00:31.8]} 32. Rg1
{[%clk 0:01:09.9]} 32... Qe7 {[%clk 0:00:30]} 33. h5 {[%clk 0:01:10.9]} 33...
Nh7 {[%clk 0:00:28.1]} 34. Qxg7+ {[%clk 0:00:43.2]} 34... Qxg7 {[%clk
0:00:28.3]} 35. Rxg7 {[%clk 0:00:44.6]} 35... Rxg7 {[%clk 0:00:29.2]} 36. h6
{[%clk 0:00:46.3]} 36... Kg8 {[%clk 0:00:25.2]} 37. hxg7 {[%clk 0:00:47.4]}
37... Kf7 {[%clk 0:00:26.5]} 38. Nd6+ {[%clk 0:00:48.5]} 38... Kg6 {[%clk
0:00:20.5]} 39. c4 {[%clk 0:00:45.8]} 39... bxc4 {[%clk 0:00:20.1]} 40. Nb7
{[%clk 0:00:44.6]} 40... Nf6 {[%clk 0:00:20.4]} 41. Nc5 {[%clk 0:00:45.7]} 41...
Rg8 {[%clk 0:00:18.3]} 42. Nxe6 {[%clk 0:00:46.5]} 42... Kf5 {[%clk 0:00:17.1]}
43. Ng5 {[%clk 0:00:42]} 43... Rxg7 {[%clk 0:00:18.1]} 44. Kc2 {[%clk
0:00:43.7]} 44... Rd7 {[%clk 0:00:18.5]} 45. Kc3 {[%clk 0:00:43.8]} 45... Rb7
{[%clk 0:00:19.7]} 46. Bxf6 {[%clk 0:00:42.7]} 46... Kxf6 {[%clk 0:00:14.7]} 47.
Ne4+ {[%clk 0:00:43.5]} 47... Ke7 {[%clk 0:00:13.6]} 48. f5 {[%clk 0:00:44.8]}
48... Rb5 {[%clk 0:00:13.4]} 49. f6+ {[%clk 0:00:44.9]} 49... Ke6 {[%clk
0:00:14.9]} 50. f7 {[%clk 0:00:35.4]} 50... Rb8 {[%clk 0:00:13.9]} 51. Kxc4
{[%clk 0:00:32.3]} 51... Kxf7 {[%clk 0:00:14.4]} 52. b4 {[%clk 0:00:33.8]} 52...
Ke6 {[%clk 0:00:15.5]} 53. a4 {[%clk 0:00:32.7]} 53... Rh8 {[%clk 0:00:15.9]}
54. Kc5 {[%clk 0:00:32.6]} 54... Kd7 {[%clk 0:00:16.6]} 55. Nf6+ {[%clk
0:00:31.9]} 55... Kc7 {[%clk 0:00:16.7]} 56. b5 {[%clk 0:00:28.2]} 56... cxb5
{[%clk 0:00:14.4]} 57. Nd5+ {[%clk 0:00:29]} 57... Kb7 {[%clk 0:00:15.5]} 58.
axb5 {[%clk 0:00:29.4]} 58... a6 {[%clk 0:00:16.2]} 59. bxa6+ {[%clk 0:00:24.1]}
59... Kxa6 {[%clk 0:00:18]} 60. Kc6 {[%clk 0:00:25.7]} 60... Rh4 {[%clk
0:00:18]} 61. Nc7+ {[%clk 0:00:26.6]} 61... Ka7 {[%clk 0:00:18.9]} 62. d5 {[%clk
0:00:28.1]} 62... Rd4 {[%clk 0:00:19.4]} 63. Nb5+ {[%clk 0:00:29.2]} 63... Kb8
{[%clk 0:00:20.1]} 64. Nxd4 {[%clk 0:00:30.5]} 1-0

[Event "*** Titled Tuesday Blitz"]
[Site "Chess.com"]
[Date "2018.11.06"]
[Round "1"]
[White "Slovak_fighter2000"]
[Black "VladimirPotkin"]
[Result "1-0"]
[WhiteElo "2295"]
[BlackElo "2582"]
[TimeControl "180+2"]
[EndTime "13:10:33 PST"]
[Termination "Slovak_fighter2000 won by resignation"]

1. d4 {[%clk 0:03:00.6]} 1... Nf6 {[%clk 0:03:00.3]} 2. Bf4 {[%clk 0:03:01.3]}
2... d5 {[%clk 0:03:00.5]} 3. Nf3 {[%clk 0:03:02.6]} 3... c5 {[%clk 0:03:01.9]}
4. e3 {[%clk 0:03:03.8]} 4... Nc6 {[%clk 0:03:03.4]} 5. Nbd2 {[%clk 0:03:03.9]}
5... cxd4 {[%clk 0:03:04.1]} 6. exd4 {[%clk 0:03:04.9]} 6... Qb6 {[%clk
0:03:05.4]} 7. Nb3 {[%clk 0:03:00.8]} 7... Bg4 {[%clk 0:03:05.8]} 8. c3 {[%clk
0:03:01]} 8... e6 {[%clk 0:03:06.5]} 9. Be2 {[%clk 0:02:57.3]} 9... Be7 {[%clk
0:03:03.2]} 10. O-O {[%clk 0:02:57.5]} 10... O-O {[%clk 0:03:01.4]} 11. h3
{[%clk 0:02:55.6]} 11... Bh5 {[%clk 0:03:01.7]} 12. Ne5 {[%clk 0:02:56.6]} 12...
Bxe2 {[%clk 0:03:00.1]} 13. Qxe2 {[%clk 0:02:58.5]} 13... Nxe5 {[%clk
0:02:59.7]} 14. Bxe5 {[%clk 0:03:00.4]} 14... Nd7 {[%clk 0:03:00.3]} 15. Bg3
{[%clk 0:02:56.2]} 15... a5 {[%clk 0:02:55.4]} 16. Nc1 {[%clk 0:02:56.7]} 16...
Qa6 {[%clk 0:02:50.3]} 17. Nd3 {[%clk 0:02:51]} 17... b5 {[%clk 0:02:48.6]} 18.
a3 {[%clk 0:02:48.4]} 18... Rfc8 {[%clk 0:02:42.5]} 19. Rfc1 {[%clk 0:02:47.7]}
19... Nb6 {[%clk 0:02:28.6]} 20. Ne5 {[%clk 0:02:32]} 20... Nc4 {[%clk
0:02:23.9]} 21. a4 {[%clk 0:02:07.2]} 21... bxa4 {[%clk 0:01:28.5]} 22. Rxa4
{[%clk 0:02:02.3]} 22... Qb5 {[%clk 0:01:30]} 23. Ra2 {[%clk 0:01:52.1]} 23...
a4 {[%clk 0:01:31]} 24. Nxc4 {[%clk 0:01:44]} 24... Rxc4 {[%clk 0:01:29.1]} 25.
Rca1 {[%clk 0:01:32.9]} 25... h6 {[%clk 0:01:18.6]} 26. Kh2 {[%clk 0:01:33.3]}
26... Qb3 {[%clk 0:01:02.7]} 27. Qd1 {[%clk 0:01:26.2]} 27... Qxd1 {[%clk
0:00:56]} 28. Rxd1 {[%clk 0:01:26.9]} 28... a3 {[%clk 0:00:57.5]} 29. bxa3
{[%clk 0:01:24.6]} 29... Rxc3 {[%clk 0:00:52.8]} 30. a4 {[%clk 0:01:25.4]} 30...
Bb4 {[%clk 0:00:53.9]} 31. Bf4 {[%clk 0:01:16.1]} 31... Rc4 {[%clk 0:00:54]} 32.
Be3 {[%clk 0:01:00.1]} 32... g5 {[%clk 0:00:54.6]} 33. Kg3 {[%clk 0:00:50.5]}
33... Kg7 {[%clk 0:00:47.3]} 34. h4 {[%clk 0:00:49.8]} 34... Kg6 {[%clk
0:00:46.8]} 35. hxg5 {[%clk 0:00:50.9]} 35... hxg5 {[%clk 0:00:48.7]} 36. Rd3
{[%clk 0:00:49.7]} 36... f5 {[%clk 0:00:47.7]} 37. f4 {[%clk 0:00:47.7]} 37...
gxf4+ {[%clk 0:00:37.1]} 38. Bxf4 {[%clk 0:00:44.1]} 38... Kf6 {[%clk
0:00:33.9]} 39. Be5+ {[%clk 0:00:45.1]} 39... Ke7 {[%clk 0:00:35]} 40. Rb3
{[%clk 0:00:42.3]} 40... Kd7 {[%clk 0:00:34.7]} 41. Kf4 {[%clk 0:00:35.5]} 41...
Kc6 {[%clk 0:00:29.5]} 42. Kg5 {[%clk 0:00:35.6]} 42... Be7+ {[%clk 0:00:26]}
43. Kg6 {[%clk 0:00:34.6]} 43... Bb4 {[%clk 0:00:19.9]} 44. Kf7 {[%clk
0:00:33.5]} 44... Kd7 {[%clk 0:00:21.1]} 45. Bg7 {[%clk 0:00:29.1]} 45... Ba5
{[%clk 0:00:18.6]} 46. Rb7+ {[%clk 0:00:27.7]} 46... Bc7 {[%clk 0:00:19.7]} 47.
Be5 {[%clk 0:00:26.4]} 47... Kc8 {[%clk 0:00:19.6]} 48. Rxc7+ {[%clk 0:00:26.5]}
48... Rxc7+ {[%clk 0:00:21.5]} 49. Bxc7 {[%clk 0:00:28.4]} 49... Kxc7 {[%clk
0:00:23.4]} 50. Kxe6 {[%clk 0:00:30.1]} 50... f4 {[%clk 0:00:18.7]} 51. Kxd5
{[%clk 0:00:30.2]} 51... Re8 {[%clk 0:00:19.5]} 52. a5 {[%clk 0:00:28.9]} 52...
Kb7 {[%clk 0:00:20.5]} 53. Kc4 {[%clk 0:00:28.6]} 53... Ka6 {[%clk 0:00:20.9]}
54. d5 {[%clk 0:00:29.6]} 54... Rf8 {[%clk 0:00:20.4]} 55. d6 {[%clk 0:00:28.9]}
55... f3 {[%clk 0:00:22.3]} 56. gxf3 {[%clk 0:00:29.7]} 56... Rxf3 {[%clk
0:00:24.2]} 57. Kd5 {[%clk 0:00:30.9]} 57... Rd3+ {[%clk 0:00:23.9]} 58. Ke6
{[%clk 0:00:31.1]} 58... Re3+ {[%clk 0:00:25]} 59. Kd7 {[%clk 0:00:32.3]} 59...
Re1 {[%clk 0:00:24.9]} 60. Kc7 {[%clk 0:00:32.7]} 60... Rc1+ {[%clk 0:00:25.2]}
61. Kd8 {[%clk 0:00:33.6]} 61... Rd1 {[%clk 0:00:26.3]} 62. d7 {[%clk
0:00:34.9]} 62... Re1 {[%clk 0:00:25.1]} 63. Rc2 {[%clk 0:00:32.7]} 63... Kb7
{[%clk 0:00:23.3]} 64. a6+ {[%clk 0:00:33.2]} 64... Kb8 {[%clk 0:00:19.1]} 65.
a7+ {[%clk 0:00:31.9]} 65... Kxa7 {[%clk 0:00:17.9]} 66. Kc8 {[%clk 0:00:31.3]}
1-0

[Event "*** Titled Tuesday Blitz"]
[Site "Chess.com"]
[Date "2018.11.06"]
[Round "1"]
[White "norwaytoadog"]
[Black "Bykov_Egor"]
[Result "0-1"]
[WhiteElo "2155"]
[BlackElo "2525"]
[TimeControl "180+2"]
[EndTime "13:10:39 PST"]
[Termination "Bykov_Egor won by resignation"]

1. e4 {[%clk 0:03:01.4]} 1... e5 {[%clk 0:03:01.1]} 2. Nf3 {[%clk 0:03:02]} 2...
Nc6 {[%clk 0:03:02.5]} 3. Bb5 {[%clk 0:03:02]} 3... a6 {[%clk 0:03:03.8]} 4. Ba4
{[%clk 0:03:03.1]} 4... Nf6 {[%clk 0:03:04.9]} 5. d3 {[%clk 0:03:04.4]} 5... b5
{[%clk 0:03:05.5]} 6. Bb3 {[%clk 0:03:05.2]} 6... Be7 {[%clk 0:03:06.9]} 7. O-O
{[%clk 0:03:04.9]} 7... d6 {[%clk 0:03:08.2]} 8. a4 {[%clk 0:03:03.8]} 8... b4
{[%clk 0:03:07.7]} 9. Nbd2 {[%clk 0:03:04.2]} 9... O-O {[%clk 0:03:08.5]} 10.
Re1 {[%clk 0:03:03.3]} 10... Be6 {[%clk 0:03:09.3]} 11. Nc4 {[%clk 0:03:02.9]}
11... Nd7 {[%clk 0:03:09.9]} 12. c3 {[%clk 0:03:01.6]} 12... Rb8 {[%clk
0:02:29.4]} 13. a5 {[%clk 0:02:48]} 13... Nc5 {[%clk 0:02:26.6]} 14. Bc2 {[%clk
0:02:30.7]} 14... Bxc4 {[%clk 0:02:20.6]} 15. dxc4 {[%clk 0:02:24.5]} 15... b3
{[%clk 0:02:18.4]} 16. Bb1 {[%clk 0:02:25.1]} 16... Nb7 {[%clk 0:02:14.6]} 17.
Qd5 {[%clk 0:02:22]} 17... Ncxa5 {[%clk 0:02:08.9]} 18. Be3 {[%clk 0:01:58.4]}
18... c6 {[%clk 0:02:09.2]} 19. Qd3 {[%clk 0:01:55.8]} 19... Nc5 {[%clk
0:02:09.3]} 20. Bxc5 {[%clk 0:01:55]} 20... dxc5 {[%clk 0:02:10.6]} 21. Qe2
{[%clk 0:01:54.4]} 21... Bf6 {[%clk 0:02:05.8]} 22. Bd3 {[%clk 0:01:51.4]} 22...
Qb6 {[%clk 0:02:03.9]} 23. Ra3 {[%clk 0:01:45]} 23... Nb7 {[%clk 0:02:04]} 24.
Nd2 {[%clk 0:01:43.9]} 24... a5 {[%clk 0:01:57.6]} 25. Rxb3 {[%clk 0:01:37.2]}
25... Qc7 {[%clk 0:01:58.8]} 26. Ra3 {[%clk 0:01:34.8]} 26... Rfd8 {[%clk
0:01:53.5]} 27. Nf1 {[%clk 0:01:29.8]} 27... Qb6 {[%clk 0:01:48.1]} 28. b3
{[%clk 0:01:29]} 28... a4 {[%clk 0:01:44.5]} 29. bxa4 {[%clk 0:01:23.8]} 29...
Na5 {[%clk 0:01:44.8]} 30. Ne3 {[%clk 0:01:18.4]} 30... Qb2 {[%clk 0:01:37.8]}
31. Qxb2 {[%clk 0:01:02.2]} 31... Rxb2 {[%clk 0:01:39.7]} 32. Bf1 {[%clk
0:00:48.6]} 32... Bg5 {[%clk 0:01:36.7]} 33. g3 {[%clk 0:00:41.1]} 33... Rdd2
{[%clk 0:01:26.8]} 34. Ng4 {[%clk 0:00:36.7]} 34... f6 {[%clk 0:01:20.7]} 35. h4
{[%clk 0:00:35.3]} 35... h5 {[%clk 0:01:21.6]} 36. hxg5 {[%clk 0:00:30.1]} 36...
hxg4 {[%clk 0:01:22.2]} 37. g6 {[%clk 0:00:21.4]} 37... Rxf2 {[%clk 0:01:09.1]}
38. Rd1 {[%clk 0:00:22.2]} 38... Kf8 {[%clk 0:01:02.6]} 39. Rd8+ {[%clk
0:00:20.9]} 39... Ke7 {[%clk 0:01:03.3]} 40. Rg8 {[%clk 0:00:22]} 40... Rf3
{[%clk 0:01:03.7]} 41. Ra1 {[%clk 0:00:20]} 41... Rxg3+ {[%clk 0:01:04.4]} 42.
Kh1 {[%clk 0:00:20.8]} 42... f5 {[%clk 0:00:48.6]} 43. exf5 {[%clk 0:00:20.7]}
43... Kf6 {[%clk 0:00:49.1]} 44. Rf8+ {[%clk 0:00:19.8]} 44... Kg5 {[%clk
0:00:50.1]} 45. f6 {[%clk 0:00:19.7]} 45... Rb7 {[%clk 0:00:44.6]} 46. f7 {[%clk
0:00:20.1]} 46... Kxg6 {[%clk 0:00:35.3]} 47. Rd1 {[%clk 0:00:20.4]} 47... Rxf7
{[%clk 0:00:32.2]} 48. Bd3+ {[%clk 0:00:21.1]} 48... Rxd3 {[%clk 0:00:32.1]} 49.
Rxd3 {[%clk 0:00:18.1]} 49... Rxf8 {[%clk 0:00:33.3]} 50. Kg2 {[%clk 0:00:19]}
50... Kf5 {[%clk 0:00:32.7]} 51. Rd6 {[%clk 0:00:16.8]} 51... Nxc4 {[%clk
0:00:33.4]} 52. Rxc6 {[%clk 0:00:17.6]} 52... Ra8 {[%clk 0:00:32.9]} 53. Rxc5
{[%clk 0:00:18.3]} 53... Rxa4 {[%clk 0:00:33.9]} 54. Kg3 {[%clk 0:00:18.8]}
54... Nd6 {[%clk 0:00:34.8]} 55. Rc7 {[%clk 0:00:18]} 55... Rc4 {[%clk
0:00:34.5]} 56. Rxg7 {[%clk 0:00:18.1]} 56... Rxc3+ {[%clk 0:00:35.1]} 57. Kg2
{[%clk 0:00:19.4]} 57... Ne4 {[%clk 0:00:35.1]} 58. Rf7+ {[%clk 0:00:20.1]}
58... Nf6 {[%clk 0:00:36.3]} 59. Rg7 {[%clk 0:00:19.3]} 59... e4 {[%clk
0:00:37.4]} 60. Kf2 {[%clk 0:00:18.6]} 60... Kf4 {[%clk 0:00:38.5]} 61. Rf7
{[%clk 0:00:19.4]} 61... Rc2+ {[%clk 0:00:39.9]} 62. Kf1 {[%clk 0:00:19.6]}
62... Kf5 {[%clk 0:00:41.4]} 63. Ke1 {[%clk 0:00:20.2]} 63... g3 {[%clk
0:00:42.3]} 64. Rg7 {[%clk 0:00:20.8]} 64... Ng4 {[%clk 0:00:43.6]} 65. Kf1
{[%clk 0:00:20.9]} 65... e3 {[%clk 0:00:42.7]} 66. Rf7+ {[%clk 0:00:20.9]} 66...
Ke4 {[%clk 0:00:42.3]} 67. Re7+ {[%clk 0:00:21.7]} 67... Ne5 {[%clk 0:00:43.2]}
68. Rg7 {[%clk 0:00:20.2]} 68... Kf3 {[%clk 0:00:43.7]} 69. Rf7+ {[%clk
0:00:20.6]} 69... Nxf7 {[%clk 0:00:44.8]} 0-1